fUSD/lending_fUSD_20260614
["ID","MTS","AMOUNT","RATE_DAILY","PERIOD"]
[425027284,1781436668000,-500.0,0.00028767,8]
[425027286,1781436668000,-500.0,0.00028767,8]
[425027285,1781436668000,-2280.24,0.00028767,8]
[425027289,1781436668000,-500.0,0.00028767,8]
[425027291,1781436668000,-2290.01,0.00028767,8]
[425027300,1781436668000,-726.26,0.00028767,8]
[425027290,1781436668000,-500.0,0.00028767,8]
[425027295,1781436668000,-500.0,0.00028767,8]
[425027293,1781436668000,-525.21,0.00028767,8]
[425027310,1781436668000,-500.0,0.00028767,8]
[425027292,1781436668000,-500.0,0.00028767,8]
[425027298,1781436668000,-306.45364938,0.00028767,8]
[425027299,1781436668000,-500.0,0.00028767,8]
[425027297,1781436668000,-926.35,0.00028767,8]
[425027302,1781436668000,-1220.26,0.00028767,8]
[425027312,1781436668000,-1678.62,0.00028767,8]
[425027301,1781436668000,-500.0,0.00028767,8]
[425027304,1781436668000,-554.77,0.00028767,8]
[425027303,1781436668000,-977.24,0.00028767,8]
[425027305,1781436668000,-500.0,0.00028767,8]
[425027309,1781436668000,-569.74,0.00028767,8]
[425027311,1781436668000,-500.0,0.00028767,8]
[425027307,1781436668000,-1356.84,0.00028767,8]
[425027296,1781436668000,-517.72,0.00028767,8]
[425027347,1781436668000,-869.79,0.00028767,8]
[425027294,1781436668000,-1928.24,0.00028767,8]
[425027339,1781436668000,-500.0,0.00028767,8]
[425027375,1781436668000,-1811.24,0.00028767,8]
[425027383,1781436668000,-500.0,0.00028767,8]
[425027376,1781436668000,-1003.12,0.00028767,8]
[425027377,1781436668000,-987.93,0.00028767,8]
[425027380,1781436668000,-500.0,0.00028767,8]
[425027381,1781436668000,-1200.46,0.00028767,8]
[425027379,1781436668000,-531.55,0.00028767,8]
[425027378,1781436668000,-1099.49,0.00028767,8]
[425027382,1781436668000,-654.37,0.00028767,8]
[425027384,1781436668000,-500.0,0.00028767,8]
[425027387,1781436668000,-777.97,0.00028767,8]
[425027386,1781436668000,-912.82,0.00028767,8]
[425027395,1781436668000,-500.0,0.00028767,8]
[425027401,1781436668000,-787.18,0.00028767,8]
[425027389,1781436668000,-774.71,0.00028767,8]
[425027385,1781436668000,-522.95,0.00028767,8]
[425027392,1781436668000,-500.0,0.00028767,8]
[425027391,1781436668000,-634.38,0.00028767,8]
[425027388,1781436668000,-500.0,0.00028767,8]
[425027393,1781436668000,-552.94,0.00028767,8]
[425027394,1781436668000,-1588.13,0.00028767,8]
[425027390,1781436668000,-1189.81,0.00028767,8]
[425027396,1781436668000,-912.53,0.00028767,8]
[425027400,1781436668000,-500.0,0.00028767,8]
[425027397,1781436668000,-598.75,0.00028767,8]
[425027399,1781436668000,-570.94,0.00028767,8]
[425027338,1781436668000,-1560.74,0.00028767,8]
[425027374,1781436668000,-500.0,0.00028767,8]
[425027372,1781436668000,-1648.44,0.00028767,8]
[425027398,1781436668000,-500.0,0.00028767,8]
[425027364,1781436668000,-500.0,0.00028767,8]
[425027373,1781436668000,-500.0,0.00028767,8]
[425027340,1781436668000,-500.0,0.00028767,8]
[425027343,1781436668000,-538.92,0.00028767,8]
[425027344,1781436668000,-500.0,0.00028767,8]
[425027349,1781436668000,-380.35756433,0.00028767,8]
[425027348,1781436668000,-500.0,0.00028767,8]
[425027350,1781436668000,-500.0,0.00028767,8]
[425027355,1781436668000,-500.0,0.00028767,8]
[425027352,1781436668000,-1025.91,0.00028767,8]
[425027351,1781436668000,-500.0,0.00028767,8]
[425027353,1781436668000,-874.3,0.00028767,8]
[425027358,1781436668000,-1370.23,0.00028767,8]
[425027357,1781436668000,-500.0,0.00028767,8]
[425027345,1781436668000,-506.23,0.00028767,8]
[425027356,1781436668000,-500.0,0.00028767,8]
[425027366,1781436668000,-568.61,0.00028767,8]
[425027354,1781436668000,-518.31,0.00028767,8]
[425027367,1781436668000,-500.0,0.00028767,8]
[425027369,1781436668000,-500.0,0.00028767,8]
[425027365,1781436668000,-503.63,0.00028767,8]
[425027363,1781436668000,-500.0,0.00028767,8]
[425027368,1781436668000,-500.0,0.00028767,8]
[425027370,1781436668000,-500.0,0.00028767,8]
[425027360,1781436668000,-500.0,0.00028767,8]
[425027359,1781436668000,-602.41,0.00028767,8]
[425027371,1781436668000,-500.0,0.00028767,8]
[425027361,1781436668000,-500.0,0.00028767,8]
[425027362,1781436668000,-2334.31,0.00028767,8]
[425027432,1781436669000,-500.0,0.00028767,8]
[425027429,1781436669000,-500.0,0.00028767,8]
[425027430,1781436669000,-1341.19,0.00028767,8]
[425027435,1781436669000,-793.99,0.00028767,8]
[425027434,1781436669000,-500.0,0.00028767,8]
[425027440,1781436669000,-539.20605724,0.00028767,8]
[425027437,1781436669000,-500.0,0.00028767,8]
[425027444,1781436669000,-781.07,0.00028767,8]
[425027426,1781436669000,-500.0,0.00028767,8]
[425027431,1781436669000,-1023.56,0.00028767,8]
[425027442,1781436669000,-500.0,0.00028767,8]
[425027436,1781436669000,-500.0,0.00028767,8]
[425027443,1781436669000,-722.31,0.00028767,8]
[425027439,1781436669000,-500.0,0.00028767,8]
[425027441,1781436669000,-500.0,0.00028767,8]
[425027446,1781436669000,-500.0,0.00028767,8]
[425027453,1781436669000,-500.0,0.00028767,8]
[425027455,1781436669000,-532.89,0.00028767,8]
[425027447,1781436669000,-500.0,0.00028767,8]
[425027454,1781436669000,-500.0,0.00028767,8]
[425027428,1781436669000,-500.0,0.00028767,8]
[425027445,1781436669000,-500.0,0.00028767,8]
[425027438,1781436669000,-500.0,0.00028767,8]
[425027425,1781436669000,-2873.83,0.00028767,8]
[425027416,1781436669000,-605.94,0.00028767,8]
[425027427,1781436669000,-500.0,0.00028767,8]
[425027448,1781436669000,-500.0,0.00028767,8]
[425027408,1781436669000,-2216.26,0.00028767,8]
[425027403,1781436669000,-500.0,0.00028767,8]
[425027407,1781436669000,-500.0,0.00028767,8]
[425027402,1781436669000,-636.28,0.00028767,8]
[425027404,1781436669000,-741.68,0.00028767,8]
[425027405,1781436669000,-1919.91,0.00028767,8]
[425027406,1781436669000,-500.0,0.00028767,8]
[425027409,1781436669000,-560.4,0.00028767,8]
[425027418,1781436669000,-830.68,0.00028767,8]
[425027414,1781436669000,-500.0,0.00028767,8]
[425027410,1781436669000,-500.0,0.00028767,8]
[425027411,1781436669000,-500.0,0.00028767,8]
[425027419,1781436669000,-500.0,0.00028767,8]
[425027420,1781436669000,-500.0,0.00028767,8]
[425027415,1781436669000,-500.0,0.00028767,8]
[425027413,1781436669000,-500.0,0.00028767,8]
[425027412,1781436669000,-995.65,0.00028767,8]
[425027421,1781436669000,-1100.07,0.00028767,8]
[425027417,1781436669000,-500.0,0.00028767,8]
[425027423,1781436669000,-846.65,0.00028767,8]
[425027422,1781436669000,-735.69,0.00028767,8]
[425027433,1781436669000,-500.0,0.00028767,8]
[425027424,1781436669000,-697.82,0.00028767,8]
[425027452,1781436669000,-831.75,0.00028767,8]
[425027460,1781436669000,-545.5,0.00028767,8]
[425027449,1781436669000,-1123.95,0.00028767,8]
[425027485,1781436669000,-500.0,0.00028767,8]
[425027482,1781436669000,-500.0,0.00028767,8]
[425027491,1781436669000,-1471.09,0.00028767,8]
[425027487,1781436669000,-845.71,0.00028767,8]
[425027490,1781436669000,-500.0,0.00028767,8]
[425027489,1781436669000,-691.93,0.00028767,8]
[425027486,1781436669000,-913.06,0.00028767,8]
[425027492,1781436669000,-681.29,0.00028767,8]
[425027484,1781436669000,-1080.75,0.00028767,8]
[425027488,1781436669000,-645.65,0.00028767,8]
[425027483,1781436669000,-500.0,0.00028767,8]
[425027494,1781436669000,-559.98,0.00028767,8]
[425027497,1781436669000,-516.16,0.00028767,8]
[425027500,1781436669000,-1073.91,0.00028767,8]
[425027498,1781436669000,-500.0,0.00028767,8]
[425027502,1781436669000,-500.0,0.00028767,8]
[425027503,1781436669000,-1015.69,0.00028767,8]
[425027495,1781436669000,-500.0,0.00028767,8]
[425027456,1781436669000,-557.26,0.00028767,8]
[425027499,1781436669000,-2587.9,0.00028767,8]
[425027501,1781436669000,-500.0,0.00028767,8]
[425027504,1781436669000,-1615.21,0.00028767,8]
[425027493,1781436669000,-500.0,0.00028767,8]
[425027481,1781436669000,-500.0,0.00028767,8]
[425027496,1781436669000,-500.0,0.00028767,8]
[425027475,1781436669000,-500.0,0.00028767,8]
[425027478,1781436669000,-589.15,0.00028767,8]
[425027451,1781436669000,-1784.22,0.00028767,8]
[425027457,1781436669000,-784.08,0.00028767,8]
[425027462,1781436669000,-500.0,0.00028767,8]
[425027458,1781436669000,-583.27,0.00028767,8]
[425027467,1781436669000,-2115.09,0.00028767,8]
[425027464,1781436669000,-1659.48,0.00028767,8]
[425027468,1781436669000,-500.0,0.00028767,8]
[425027466,1781436669000,-500.0,0.00028767,8]
[425027463,1781436669000,-500.0,0.00028767,8]
[425027459,1781436669000,-500.0,0.00028767,8]
[425027450,1781436669000,-1912.54,0.00028767,8]
[425027465,1781436669000,-500.0,0.00028767,8]
[425027461,1781436669000,-500.0,0.00028767,8]
[425027473,1781436669000,-1198.28,0.00028767,8]
[425027479,1781436669000,-1059.93,0.00028767,8]
[425027474,1781436669000,-500.0,0.00028767,8]
[425027476,1781436669000,-1673.77,0.00028767,8]
[425027469,1781436669000,-1675.91,0.00028767,8]
[425027471,1781436669000,-585.03,0.00028767,8]
[425027470,1781436669000,-500.0,0.00028767,8]
[425027480,1781436669000,-1289.21,0.00028767,8]
[425027472,1781436669000,-500.0,0.00028767,8]
[425027477,1781436669000,-500.0,0.00028767,8]
[425027529,1781436670000,-500.0,0.00028767,8]
[425027533,1781436670000,-387.39697493,0.00028767,8]
[425027526,1781436670000,-561.61,0.00028767,8]
[425027532,1781436670000,-2111.57,0.00028767,8]
[425027530,1781436670000,-500.0,0.00028767,8]
[425027528,1781436670000,-558.03,0.00028767,8]
[425027531,1781436670000,-500.0,0.00028767,8]
[425027534,1781436670000,-842.87,0.00028767,8]
[425027542,1781436670000,-500.0,0.00028767,8]
[425027540,1781436670000,-500.0,0.00028767,8]
[425027536,1781436670000,-500.0,0.00028767,8]
[425027537,1781436670000,-500.0,0.00028767,8]
[425027539,1781436670000,-1422.21,0.00028767,8]
[425027538,1781436670000,-1064.21,0.00028767,8]
[425027541,1781436670000,-1427.35,0.00028767,8]
[425027544,1781436670000,-500.0,0.00028767,8]
[425027548,1781436670000,-500.0,0.00028767,8]
[425027552,1781436670000,-500.0,0.00028767,8]
[425027535,1781436670000,-500.0,0.00028767,8]
[425027527,1781436670000,-1755.57,0.00028767,8]
[425027512,1781436670000,-500.0,0.00028767,8]
[425027525,1781436670000,-517.2,0.00028767,8]
[425027506,1781436670000,-614.1,0.00028767,8]
[425027505,1781436670000,-500.0,0.00028767,8]
[425027507,1781436670000,-500.0,0.00028767,8]
[425027509,1781436670000,-406.19239063,0.00028767,8]
[425027508,1781436670000,-528.66,0.00028767,8]
[425027511,1781436670000,-617.31,0.00028767,8]
[425027510,1781436670000,-500.0,0.00028767,8]
[425027515,1781436670000,-500.0,0.00028767,8]
[425027524,1781436670000,-701.07,0.00028767,8]
[425027514,1781436670000,-1087.19,0.00028767,8]
[425027513,1781436670000,-600.36,0.00028767,8]
[425027516,1781436670000,-583.88,0.00028767,8]
[425027517,1781436670000,-500.0,0.00028767,8]
[425027518,1781436670000,-500.0,0.00028767,8]
[425027519,1781436670000,-1039.97,0.00028767,8]
[425027522,1781436670000,-620.51,0.00028767,8]
[425027520,1781436670000,-2777.35,0.00028767,8]
[425027523,1781436670000,-909.15,0.00028767,8]
[425027521,1781436670000,-500.0,0.00028767,8]
[425027553,1781436670000,-500.0,0.00028767,8]
[425027570,1781436670000,-813.15,0.00028767,8]
[425027550,1781436670000,-500.0,0.00028767,8]
[425027569,1781436670000,-1603.48,0.00028767,8]
[425027575,1781436670000,-500.0,0.00028767,8]
[425027576,1781436670000,-500.0,0.00028767,8]
[425027572,1781436670000,-500.0,0.00028767,8]
[425027574,1781436670000,-500.0,0.00028767,8]
[425027578,1781436670000,-500.0,0.00028767,8]
[425027581,1781436670000,-2702.99,0.00028767,8]
[425027579,1781436670000,-500.0,0.00028767,8]
[425027567,1781436670000,-500.0,0.00028767,8]
[425027577,1781436670000,-500.0,0.00028767,8]
[425027583,1781436670000,-1057.13,0.00028767,8]
[425027584,1781436670000,-500.0,0.00028767,8]
[425027585,1781436670000,-500.0,0.00028767,8]
[425027587,1781436670000,-500.0,0.00028767,8]
[425027588,1781436670000,-500.0,0.00028767,8]
[425027589,1781436670000,-500.0,0.00028767,8]
[425027586,1781436670000,-1329.92,0.00028767,8]
[425027546,1781436670000,-702.92,0.00028767,8]
[425027580,1781436670000,-730.92,0.00028767,8]
[425027568,1781436670000,-500.0,0.00028767,8]
[425027582,1781436670000,-1793.44,0.00028767,8]
[425027571,1781436670000,-500.0,0.00028767,8]
[425027573,1781436670000,-1879.34,0.00028767,8]
[425027543,1781436670000,-542.97,0.00028767,8]
[425027549,1781436670000,-500.0,0.00028767,8]
[425027547,1781436670000,-779.47,0.00028767,8]
[425027555,1781436670000,-1929.81,0.00028767,8]
[425027558,1781436670000,-500.0,0.00028767,8]
[425027554,1781436670000,-1516.11,0.00028767,8]
[425027556,1781436670000,-1889.86,0.00028767,8]
[425027551,1781436670000,-500.0,0.00028767,8]
[425027559,1781436670000,-622.55,0.00028767,8]
[425027566,1781436670000,-500.0,0.00028767,8]
[425027561,1781436670000,-500.0,0.00028767,8]
[425027565,1781436670000,-1063.21,0.00028767,8]
[425027563,1781436670000,-500.0,0.00028767,8]
[425027557,1781436670000,-1492.97,0.00028767,8]
[425027545,1781436670000,-500.0,0.00028767,8]
[425027562,1781436670000,-749.09,0.00028767,8]
[425027564,1781436670000,-500.0,0.00028767,8]
[425027560,1781436670000,-541.98,0.00028767,8]
[425027620,1781436671000,-500.0,0.00028767,8]
[425027623,1781436671000,-714.13,0.00028767,8]
[425027617,1781436671000,-1052.46,0.00028767,8]
[425027622,1781436671000,-500.0,0.00028767,8]
[425027621,1781436671000,-500.0,0.00028767,8]
[425027627,1781436671000,-723.45,0.00028767,8]
[425027624,1781436671000,-1285.45,0.00028767,8]
[425027629,1781436671000,-500.0,0.00028767,8]
[425027628,1781436671000,-1535.4,0.00028767,8]
[425027625,1781436671000,-500.0,0.00028767,8]
[425027630,1781436671000,-3262.01,0.00028767,8]
[425027626,1781436671000,-777.97,0.00028767,8]
[425027639,1781436671000,-1545.51,0.00028767,8]
[425027635,1781436671000,-500.0,0.00028767,8]
[425027633,1781436671000,-919.65,0.00028767,8]
[425027632,1781436671000,-629.84,0.00028767,8]
[425027634,1781436671000,-1237.19,0.00028767,8]
[425027640,1781436671000,-1383.07,0.00028767,8]
[425027636,1781436671000,-1672.8,0.00028767,8]
[425027638,1781436671000,-500.0,0.00028767,8]
[425027637,1781436671000,-500.0,0.00028767,8]
[425027650,1781436671000,-745.76,0.00028767,8]
[425027642,1781436671000,-1822.51,0.00028767,8]
[425027615,1781436671000,-632.32,0.00028767,8]
[425027631,1781436671000,-601.2,0.00028767,8]
[425027614,1781436671000,-1057.83,0.00028767,8]
[425027594,1781436671000,-970.52,0.00028767,8]
[425027613,1781436671000,-989.38,0.00028767,8]
[425027593,1781436671000,-678.81,0.00028767,8]
[425027592,1781436671000,-500.0,0.00028767,8]
[425027595,1781436671000,-500.0,0.00028767,8]
[425027590,1781436671000,-500.0,0.00028767,8]
[425027591,1781436671000,-500.0,0.00028767,8]
[425027596,1781436671000,-500.0,0.00028767,8]
[425027641,1781436671000,-1111.21,0.00028767,8]
[425027600,1781436671000,-510.01,0.00028767,8]
[425027599,1781436671000,-500.0,0.00028767,8]
[425027597,1781436671000,-584.87,0.00028767,8]
[425027598,1781436671000,-500.0,0.00028767,8]
[425027616,1781436671000,-540.12,0.00028767,8]
[425027601,1781436671000,-500.0,0.00028767,8]
[425027604,1781436671000,-1112.24,0.00028767,8]
[425027607,1781436671000,-574.78,0.00028767,8]
[425027602,1781436671000,-500.0,0.00028767,8]
[425027606,1781436671000,-1267.91,0.00028767,8]
[425027609,1781436671000,-500.0,0.00028767,8]
[425027619,1781436671000,-765.46,0.00028767,8]
[425027608,1781436671000,-1025.96,0.00028767,8]
[425027611,1781436671000,-500.0,0.00028767,8]
[425027610,1781436671000,-500.0,0.00028767,8]
[425027618,1781436671000,-500.0,0.00028767,8]
[425027612,1781436671000,-500.0,0.00028767,8]
[425027603,1781436671000,-599.38,0.00028767,8]
[425027644,1781436671000,-500.0,0.00028767,8]
[425027605,1781436671000,-500.0,0.00028767,8]
[425027645,1781436671000,-1731.92,0.00028767,8]
[425027674,1781436671000,-500.0,0.00028767,8]
[425027685,1781436671000,-500.0,0.00028767,8]
[425027678,1781436671000,-270.28737708,0.00028767,8]
[425027681,1781436671000,-500.0,0.00028767,8]
[425027677,1781436671000,-961.87,0.00028767,8]
[425027679,1781436671000,-500.0,0.00028767,8]
[425027682,1781436671000,-500.0,0.00028767,8]
[425027684,1781436671000,-1563.27,0.00028767,8]
[425027680,1781436671000,-2930.4,0.00028767,8]
[425027683,1781436671000,-671.49,0.00028767,8]
[425027687,1781436671000,-500.0,0.00028767,8]
[425027676,1781436671000,-813.1,0.00028767,8]
[425027697,1781436671000,-1031.13,0.00028767,8]
[425027695,1781436671000,-549.94,0.00028767,8]
[425027696,1781436671000,-1275.33,0.00028767,8]
[425027691,1781436671000,-500.0,0.00028767,8]
[425027688,1781436671000,-1714.43,0.00028767,8]
[425027690,1781436671000,-753.7,0.00028767,8]
[425027692,1781436671000,-1419.27,0.00028767,8]
[425027694,1781436671000,-774.03,0.00028767,8]
[425027689,1781436671000,-500.0,0.00028767,8]
[425027698,1781436671000,-2415.9,0.00028767,8]
[425027699,1781436671000,-500.0,0.00028767,8]
[425027643,1781436671000,-1480.16,0.00028767,8]
[425027686,1781436671000,-1560.69,0.00028767,8]
[425027675,1781436671000,-533.74,0.00028767,8]
[425027693,1781436671000,-1322.89,0.00028767,8]
[425027666,1781436671000,-1033.06,0.00028767,8]
[425027672,1781436671000,-579.81,0.00028767,8]
[425027646,1781436671000,-500.0,0.00028767,8]
[425027648,1781436671000,-1870.29,0.00028767,8]
[425027647,1781436671000,-500.0,0.00028767,8]
[425027649,1781436671000,-427.00114803,0.00028767,8]
[425027652,1781436671000,-2399.74,0.00028767,8]
[425027655,1781436671000,-960.18,0.00028767,8]
[425027661,1781436671000,-500.0,0.00028767,8]
[425027657,1781436671000,-500.0,0.00028767,8]
[425027653,1781436671000,-500.0,0.00028767,8]
[425027660,1781436671000,-878.41,0.00028767,8]
[425027654,1781436671000,-500.0,0.00028767,8]
[425027651,1781436671000,-2026.37,0.00028767,8]
[425027659,1781436671000,-500.0,0.00028767,8]
[425027668,1781436671000,-804.14,0.00028767,8]
[425027656,1781436671000,-855.82,0.00028767,8]
[425027670,1781436671000,-500.0,0.00028767,8]
[425027664,1781436671000,-500.0,0.00028767,8]
[425027667,1781436671000,-500.0,0.00028767,8]
[425027669,1781436671000,-500.0,0.00028767,8]
[425027662,1781436671000,-155.61424683,0.00028767,8]
[425027665,1781436671000,-500.0,0.00028767,8]
[425027663,1781436671000,-589.98,0.00028767,8]
[425027673,1781436671000,-500.0,0.00028767,8]
[425027658,1781436671000,-500.0,0.00028767,8]
[425027671,1781436671000,-1258.82,0.00028767,8]
[425027721,1781436672000,-680.58,0.00028767,8]
[425027730,1781436672000,-500.0,0.00028767,8]
[425027725,1781436672000,-500.0,0.00028767,8]
[425027726,1781436672000,-500.0,0.00028767,8]
[425027731,1781436672000,-1159.37,0.00028767,8]
[425027727,1781436672000,-500.0,0.00028767,8]
[425027729,1781436672000,-500.0,0.00028767,8]
[425027723,1781436672000,-500.0,0.00028767,8]
[425027736,1781436672000,-3181.72,0.00028767,8]
[425027743,1781436672000,-800.3,0.00028767,8]
[425027733,1781436672000,-500.0,0.00028767,8]
[425027732,1781436672000,-824.8,0.00028767,8]
[425027734,1781436672000,-500.0,0.00028767,8]
[425027735,1781436672000,-500.0,0.00028767,8]
[425027738,1781436672000,-500.0,0.00028767,8]
[425027724,1781436672000,-788.07,0.00028767,8]
[425027739,1781436672000,-500.0,0.00028767,8]
[425027728,1781436672000,-581.98,0.00028767,8]
[425027722,1781436672000,-500.0,0.00028767,8]
[425027703,1781436672000,-1007.33,0.00028767,8]
[425027719,1781436672000,-500.0,0.00028767,8]
[425027740,1781436672000,-500.0,0.00028767,8]
[425027701,1781436672000,-500.0,0.00028767,8]
[425027702,1781436672000,-834.16,0.00028767,8]
[425027705,1781436672000,-520.85,0.00028767,8]
[425027704,1781436672000,-1509.36,0.00028767,8]
[425027708,1781436672000,-659.7,0.00028767,8]
[425027700,1781436672000,-831.68,0.00028767,8]
[425027707,1781436672000,-531.74567369,0.00028767,8]
[425027706,1781436672000,-658.32,0.00028767,8]
[425027710,1781436672000,-2035.16,0.00028767,8]
[425027709,1781436672000,-500.0,0.00028767,8]
[425027718,1781436672000,-1929.52,0.00028767,8]
[425027712,1781436672000,-649.0,0.00028767,8]
[425027716,1781436672000,-777.82,0.00028767,8]
[425027711,1781436672000,-500.0,0.00028767,8]
[425027717,1781436672000,-500.0,0.00028767,8]
[425027715,1781436672000,-1428.44,0.00028767,8]
[425027713,1781436672000,-2679.21,0.00028767,8]
[425027714,1781436672000,-723.52,0.00028767,8]
[425027720,1781436672000,-500.0,0.00028767,8]
[425027737,1781436672000,-3445.43,0.00028767,8]
[425027746,1781436672000,-626.28,0.00028767,8]
[425027741,1781436672000,-500.0,0.00028767,8]
[425027768,1781436672000,-500.0,0.00028767,8]
[425027770,1781436672000,-562.99,0.00028767,8]
[425027767,1781436672000,-996.43,0.00028767,8]
[425027773,1781436672000,-1566.12,0.00028767,8]
[425027772,1781436672000,-500.0,0.00028767,8]
[425027769,1781436672000,-575.74,0.00028767,8]
[425027771,1781436672000,-1237.94,0.00028767,8]
[425027774,1781436672000,-500.0,0.00028767,8]
[425027766,1781436672000,-500.0,0.00028767,8]
[425027776,1781436672000,-797.81,0.00028767,8]
[425027781,1781436672000,-1610.59,0.00028767,8]
[425027779,1781436672000,-500.0,0.00028767,8]
[425027775,1781436672000,-1460.01,0.00028767,8]
[425027777,1781436672000,-500.0,0.00028767,8]
[425027780,1781436672000,-500.0,0.00028767,8]
[425027782,1781436672000,-500.0,0.00028767,8]
[425027783,1781436672000,-500.0,0.00028767,8]
[425027742,1781436672000,-995.14,0.00028767,8]
[425027778,1781436672000,-752.7,0.00028767,8]
[425027765,1781436672000,-500.0,0.00028767,8]
[425027784,1781436672000,-1356.73,0.00028767,8]
[425027762,1781436672000,-669.87,0.00028767,8]
[425027744,1781436672000,-500.0,0.00028767,8]
[425027745,1781436672000,-500.0,0.00028767,8]
[425027748,1781436672000,-2163.19,0.00028767,8]
[425027750,1781436672000,-773.17,0.00028767,8]
[425027749,1781436672000,-500.0,0.00028767,8]
[425027763,1781436672000,-1774.5,0.00028767,8]
[425027751,1781436672000,-500.0,0.00028767,8]
[425027752,1781436672000,-599.34,0.00028767,8]
[425027756,1781436672000,-2610.35,0.00028767,8]
[425027747,1781436672000,-500.0,0.00028767,8]
[425027753,1781436672000,-500.0,0.00028767,8]
[425027755,1781436672000,-611.27,0.00028767,8]
[425027757,1781436672000,-1061.11,0.00028767,8]
[425027758,1781436672000,-500.0,0.00028767,8]
[425027760,1781436672000,-500.0,0.00028767,8]
[425027761,1781436672000,-500.0,0.00028767,8]
[425027759,1781436672000,-500.0,0.00028767,8]
[425027764,1781436672000,-500.0,0.00028767,8]
[425027754,1781436672000,-1329.08,0.00028767,8]
[425027815,1781436673000,-840.44,0.00028767,8]
[425027811,1781436673000,-2372.27,0.00028767,8]
[425027812,1781436673000,-3430.6,0.00028767,8]
[425027808,1781436673000,-922.35,0.00028767,8]
[425027810,1781436673000,-545.16,0.00028767,8]
[425027806,1781436673000,-2119.45,0.00028767,8]
[425027809,1781436673000,-544.11197388,0.00028767,8]
[425027814,1781436673000,-500.0,0.00028767,8]
[425027823,1781436673000,-500.0,0.00028767,8]
[425027813,1781436673000,-596.92,0.00028767,8]
[425027817,1781436673000,-508.09,0.00028767,8]
[425027820,1781436673000,-710.8,0.00028767,8]
[425027818,1781436673000,-500.0,0.00028767,8]
[425027819,1781436673000,-1470.97,0.00028767,8]
[425027822,1781436673000,-1067.55,0.00028767,8]
[425027821,1781436673000,-500.0,0.00028767,8]
[425027802,1781436673000,-500.0,0.00028767,8]
[425027816,1781436673000,-500.0,0.00028767,8]
[425027800,1781436673000,-500.0,0.00028767,8]
[425027795,1781436673000,-1312.02,0.00028767,8]
[425027805,1781436673000,-500.0,0.00028767,8]
[425027824,1781436673000,-500.0,0.00028767,8]
[425027785,1781436673000,-524.19,0.00028767,8]
[425027788,1781436673000,-1411.59,0.00028767,8]
[425027786,1781436673000,-1378.62,0.00028767,8]
[425027787,1781436673000,-620.19,0.00028767,8]
[425027790,1781436673000,-500.0,0.00028767,8]
[425027789,1781436673000,-1252.66,0.00028767,8]
[425027791,1781436673000,-535.34,0.00028767,8]
[425027792,1781436673000,-500.0,0.00028767,8]
[425027793,1781436673000,-500.0,0.00028767,8]